bitfinex/quotes_ETHUSD_20230405
["timestamp","ask_amount","ask_price","bid_price","bid_amount"]
[1680702983830,0.24090001,1913.6,1913.1,2.63428255]
[1680702984260,0.11000001,1913.6,1913.1,2.63428255]
[1680702985676,0.11000001,1913.6,1913.2,1.0]
[1680702985836,0.11000001,1913.6,1913.3,2.63428255]
[1680702986788,0.11000001,1913.6,1913.4,1.0]
[1680702986959,0.11000001,1913.6,1913.5,2.63428255]
[1680702987139,0.11000001,1913.6,1913.5,2.99771081]
[1680702991419,0.11000001,1913.6,1913.5,7.58971081]
[1680702991630,0.11000001,1913.6,1913.5,7.59171081]
[1680702993996,0.11000001,1913.6,1913.5,13.37593374]
[1680702994328,0.11000001,1913.7,1913.6,6.81659337]
[1680702994625,0.11000001,1913.7,1913.6,19.51817592]
[1680702995095,0.11000001,1913.7,1913.6,18.51817592]
[1680702995827,0.11000001,1913.7,1913.6,11.94717592]
[1680702996231,0.11000001,1913.7,1913.6,6.97387592]
[1680702996586,0.11000001,1913.7,1913.6,3.97387592]
[1680702996786,0.11000001,1913.7,1913.6,2.63428255]
[1680702996982,0.11000001,1913.7,1913.5,3.16542826]
[1680702997227,0.11000001,1913.7,1913.5,2.8]
[1680702997930,1.092,1913.6,1913.5,2.8]
[1680702998241,0.11000001,1913.7,1913.5,2.8]
[1680703004352,0.11000001,1913.7,1913.5,5.43428255]
[1680703004565,0.11000001,1913.7,1913.5,5.43628255]
[1680703004780,0.11000001,1913.7,1913.5,5.97991081]
[1680703006645,0.11000001,1913.7,1913.5,2.802]
[1680703006982,0.11000001,1913.7,1913.5,2.8]
[1680703011899,1.20200001,1913.7,1913.5,2.8]
[1680703012221,1.092,1913.6,1913.5,2.8]
[1680703012370,1.322,1913.6,1913.5,2.8]
[1680703012574,1.4652,1913.6,1913.5,2.8]
[1680703012805,1.4712,1913.6,1913.5,2.8]
[1680703014118,0.236,1913.6,1913.5,2.8]
[1680703014320,0.23,1913.6,1913.5,2.8]
[1680703014475,1.20500001,1913.7,1913.5,2.8]
[1680703014666,1.19900001,1913.7,1913.5,2.8]
[1680703015919,0.11000001,1913.7,1913.5,2.8]
[1680703016989,0.11000001,1913.7,1913.5,3.08]
[1680703017231,0.11000001,1913.7,1913.6,1.02168516]
[1680703017517,12.5033,1914.1,1913.6,0.02168516]
[1680703017518,11.72535812,1914.1,1913.6,0.02168516]
[1680703017718,11.72535812,1914.1,1913.6,0.60070486]
[1680703019121,1.089,1914.0,1913.6,0.60070486]
[1680703019305,1.092,1913.9,1913.6,0.02690809]
[1680703020148,1.092,1913.9,1913.6,0.00522293]
[1680703020649,1.083,1913.8,1913.6,0.00522293]
[1680703020806,0.23,1913.7,1913.5,2.80522293]
[1680703024411,1.083,1913.8,1913.5,2.80522293]
[1680703024643,1.089,1913.9,1913.5,2.80522293]
[1680703025418,1.089,1913.9,1913.5,3.08574522]
[1680703029162,1.089,1913.8,1913.5,2.80522293]
[1680703029367,1.322,1913.7,1913.5,2.80522293]
[1680703029743,0.23,1913.7,1913.5,2.80522293]
[1680703029937,0.23,1913.7,1913.5,0.00522293]
[1680703030252,1.092,1913.8,1913.3,0.02691149]
[1680703031460,1.089,1913.9,1913.3,0.02691149]
[1680703032832,1.318,1913.8,1913.3,0.02691149]
[1680703033031,1.083,1913.7,1913.3,0.02691149]
[1680703033660,1.083,1913.8,1913.3,0.02691149]
[1680703037454,1.318,1913.7,1913.3,0.02691149]
[1680703037983,5.2944,1913.9,1913.4,1.0]
[1680703038147,5.2944,1913.9,1913.5,0.1]
[1680703038480,5.2944,1913.9,1913.5,0.10522293]
[1680703040986,0.002,1913.9,1913.5,0.10522293]
[1680703041197,10.63335812,1914.1,1913.5,2.73950548]
[1680703041496,11.72535812,1914.1,1913.6,0.27395055]
[1680703041701,11.72535812,1914.1,1913.6,0.27917348]
[1680703041901,1.318,1914.0,1913.6,0.27917348]
[1680703042198,1.318,1914.0,1913.6,0.00522293]
[1680703042416,0.23,1914.0,1913.6,0.00522293]
[1680703043703,0.002,1914.1,1913.7,0.02168403]
[1680703043908,0.11000001,1914.2,1913.7,0.02168403]
[1680703044098,0.11000001,1914.2,1913.7,0.12385243]
[1680703044874,0.11000001,1914.2,1913.8,2.63428255]
[1680703045217,0.10753543,1914.2,1913.8,2.63428255]
[1680703045707,0.10753543,1914.2,1913.8,0.00522293]
[1680703045876,0.10753543,1914.2,1913.8,2.63428255]
[1680703046072,0.10753543,1914.2,1913.9,3.26342826]
[1680703046372,1.083,1914.0,1913.9,0.00522293]
[1680703046574,1.083,1914.0,1913.6,1.8]
[1680703046805,1.092,1913.9,1913.6,1.80522293]
[1680703047003,1.092,1913.9,1913.6,1.8]
[1680703047303,1.092,1913.9,1913.7,0.18052229]
[1680703047506,1.092,1913.9,1913.6,1.80522293]
[1680703047707,1.083,1914.0,1913.6,1.80522293]
[1680703047877,1.083,1914.0,1913.6,1.8]
[1680703049523,1.092,1914.1,1913.6,1.8]
[1680703049853,1.72365354,1914.1,1913.6,1.8]
[1680703051344,1.72365354,1914.1,1913.6,1.80522293]
[1680703052463,1.092,1914.1,1913.6,1.80522293]
[1680703053732,5.22453543,1914.2,1913.7,1.0]
[1680703054228,1.092,1914.1,1913.6,1.80522293]
[1680703054430,1.092,1914.1,1913.6,1.99594522]
[1680703054632,6.31653543,1914.2,1913.6,1.99594522]
[1680703056375,6.31653543,1914.2,1913.6,4.63022777]
[1680703057234,6.31653543,1914.2,1913.6,4.65191293]
[1680703058134,1.083,1913.8,1913.6,1.80522293]
[1680703058470,1.083,1913.8,1913.6,1.8]
[1680703060245,1.088,1913.9,1913.6,1.8]
[1680703060459,2.33255,1913.9,1913.6,1.8]
[1680703061459,11.3575,1914.0,1913.6,1.8]
[1680703063783,0.002,1914.0,1913.6,1.8]
[1680703063957,1.083,1914.1,1913.6,1.8]
[1680703064153,1.083,1914.1,1913.6,4.43428255]
[1680703064481,21.71657329,1914.2,1913.6,4.43950548]
[1680703064774,21.71657329,1914.2,1913.7,0.44395055]
[1680703065178,17.54193543,1914.2,1913.7,0.44917348]
[1680703065777,1.092,1914.1,1913.7,0.00522293]
[1680703065958,1.322,1914.1,1913.6,1.80522293]
[1680703066346,1.092,1914.1,1913.6,4.43950548]
[1680703066551,18.63393543,1914.2,1913.7,0.44395055]
[1680703066855,0.23,1914.1,1913.7,0.00522293]
[1680703067059,1.319,1914.1,1913.6,1.80522293]
[1680703067281,3.20509354,1914.1,1913.6,1.80522293]
[1680703068567,1.319,1914.1,1913.6,1.80522293]
[1680703069493,1.089,1914.1,1913.6,1.80522293]
[1680703069689,18.63393543,1914.2,1913.6,1.80522293]
[1680703069860,18.63393543,1914.2,1913.6,4.43950548]
[1680703070061,1.083,1914.1,1913.6,2.35134211]
[1680703070275,1.083,1914.1,1913.6,1.80522293]
[1680703070800,17.54193543,1914.2,1913.6,1.8]
[1680703070994,1.092,1913.8,1913.6,1.8]
[1680703071296,1.092,1913.8,1913.6,1.80522293]
[1680703071492,1.092,1913.8,1913.6,1.8]
[1680703071671,1.092,1913.9,1913.6,1.8]
[1680703073399,1.092,1914.0,1913.6,1.98052229]
[1680703073721,1.322,1914.1,1913.6,1.98052229]
[1680703073861,1.322,1914.1,1913.6,1.98574522]
[1680703074063,1.083,1914.0,1913.6,1.80522293]
[1680703074258,1.083,1914.0,1913.6,1.8]
[1680703075607,1.083,1914.0,1913.6,1.80522293]
[1680703076168,2.11639354,1914.1,1913.6,1.80522293]
[1680703076169,1.088,1913.9,1913.6,1.80522293]
[1680703077405,1.31805968,1913.8,1913.6,1.8]
[1680703077608,1.092,1913.7,1913.6,1.8]
[1680703078418,1.318,1913.8,1913.6,1.8]
[1680703078743,1.4498,1913.8,1913.6,1.8]
[1680703078910,1.318,1913.8,1913.6,1.8]
[1680703081285,1.092,1913.9,1913.6,1.8]
[1680703083640,1.322,1913.8,1913.6,1.8]
[1680703083798,1.4542,1913.8,1913.6,1.8]
[1680703083991,1.322,1913.8,1913.6,1.8]
[1680703085920,1.322,1913.8,1913.6,1.00233514]
[1680703088058,0.23,1913.8,1913.6,1.00233514]
[1680703088402,1.092,1913.9,1913.6,1.00233514]
[1680703090393,1.092,1913.8,1913.6,1.00233514]
[1680703090822,1.086,1913.6,1913.2,0.00722293]
[1680703091137,1.092,1913.4,1912.8,1.80522293]
[1680703091306,6.3632,1913.5,1912.9,2.63428255]
[1680703091501,6.3652,1913.5,1912.9,2.63950548]
[1680703091697,7.02341,1913.5,1912.9,3.08365603]
[1680703092305,1.083,1913.4,1912.9,2.63950548]
[1680703092937,7.02941,1913.5,1912.9,2.63950548]
[1680703093232,6.3712,1913.5,1913.0,0.02169196]
[1680703094731,1.091,1913.5,1913.0,0.02169196]
[1680703094936,1.089,1913.5,1913.1,2.63428255]
[1680703095144,1.089,1913.5,1913.1,2.89988]
[1680703095828,1.089,1913.5,1913.1,0.26559745]
[1680703096027,12.1054,1913.7,1913.0,0.02169196]
[1680703096211,1.092,1913.4,1913.0,0.02169196]
[1680703096544,1.089,1913.5,1913.0,0.02169196]
[1680703096743,1.089,1913.5,1913.0,0.49659345]
[1680703098417,1.088,1913.4,1912.9,4.72932293]
[1680703098624,1.088,1913.4,1912.9,4.72732293]
[1680703099019,1.092,1913.3,1912.9,4.72732293]
[1680703099234,1.092,1913.3,1912.9,0.00522293]
[1680703099413,1.092,1913.3,1912.8,1.8]
[1680703099940,5.479,1913.4,1912.8,1.8]
[1680703099941,0.23,1913.2,1912.8,1.8]
[1680703100145,0.002,1913.4,1912.9,2.63428255]
[1680703100344,1.092,1913.5,1912.8,1.80722293]
[1680703100513,0.1092,1913.4,1912.8,1.8]
[1680703101258,1.092,1913.5,1912.8,1.8]
[1680703101409,0.23,1913.4,1912.8,1.8]
[1680703102143,0.23,1913.4,1912.9,0.0216931]
[1680703102315,1.092,1913.6,1912.9,2.65597565]
[1680703102516,17.7593,1913.7,1913.0,2.63428255]
[1680703105370,1.092,1913.6,1913.0,2.63428255]
[1680703106162,12.3492,1913.7,1913.0,2.63428255]
[1680703106976,12.3432,1913.7,1913.0,2.63428255]
[1680703107177,12.3432,1913.7,1913.1,0.26342826]
[1680703107340,12.3432,1913.7,1913.1,2.63428255]
[1680703107539,12.3492,1913.7,1913.1,2.63428255]
[1680703110472,1.088,1913.6,1913.1,2.63428255]
[1680703110642,1.088,1913.6,1913.0,0.00722293]
[1680703110833,6.3781,1913.6,1913.0,2.63428255]
[1680703111039,7.61552,1913.6,1913.0,3.38473241]
[1680703112044,7.61552,1913.6,1912.9,4.87221603]
[1680703112242,7.61552,1913.6,1912.9,4.87021603]
[1680703112442,0.23,1913.5,1912.9,4.87021603]
[1680703115388,1.318,1913.5,1912.9,0.02691603]
[1680703115590,0.1318,1913.4,1912.9,0.0216931]
[1680703116094,0.23,1913.5,1912.9,0.0216931]
[1680703116592,0.18295,1913.1,1912.9,0.0216931]
[1680703117093,0.18294,1913.2,1912.9,0.0216931]
[1680703118500,0.36586,1913.3,1912.9,0.0216931]
[1680703118817,0.18294,1913.2,1912.9,0.0216931]
[1680703118964,0.18295,1913.1,1912.9,0.4832247]
[1680703119172,0.18295,1913.0,1912.9,0.0216931]
[1680703119381,0.18295,1913.1,1912.9,0.0216931]
[1680703120506,0.18295,1913.0,1912.9,0.0216931]
[1680703121183,0.18295,1913.0,1912.8,4.59362293]
[1680703121382,0.18295,1913.0,1912.8,5.55318522]
[1680703121682,0.18295,1913.0,1912.8,5.55518522]
[1680703122196,0.18295,1913.0,1912.8,0.96678522]
[1680703122410,0.18295,1913.0,1912.8,0.96478522]
[1680703122975,0.54885,1913.1,1912.8,0.96478522]
[1680703123176,0.18295,1913.0,1912.8,0.96478522]
[1680703123569,0.54885,1913.1,1912.8,0.96478522]
[1680703123969,16.4846,1913.3,1912.8,0.00522293]
[1680703124124,0.36591,1913.0,1912.8,0.00522293]
[1680703124319,0.18296,1912.9,1912.7,2.00522293]
[1680703125751,0.18297,1912.9,1912.7,2.00522293]
[1680703125957,0.54887,1913.0,1912.7,2.00522293]
[1680703126273,0.18297,1912.9,1912.7,2.00522293]
[1680703126624,0.18296,1913.0,1912.7,2.00522293]
[1680703127929,0.18296,1912.9,1912.7,2.00522293]
[1680703128251,0.18296,1913.0,1912.7,2.00522293]
[1680703128449,1.09768,1913.1,1912.7,2.00522293]
[1680703128450,1.09768,1913.1,1912.7,2.67710522]
[1680703128767,0.18296,1912.9,1912.7,2.00522293]
[1680703128927,0.18296,1913.0,1912.7,2.00522293]
[1680703129131,0.18296,1912.9,1912.7,2.00522293]
[1680703129322,0.18296,1913.0,1912.7,2.00522293]
[1680703129528,0.18296,1913.0,1912.7,3.00522293]
[1680703129727,0.18297,1912.9,1912.8,0.30052229]
[1680703130035,0.18296,1913.0,1912.8,0.30052229]
[1680703130228,0.18296,1913.0,1912.8,0.02169423]
[1680703130428,0.18296,1913.0,1912.8,1.02169423]
[1680703130645,0.18296,1912.9,1912.8,0.02169423]
[1680703131065,0.18296,1913.0,1912.8,0.02169423]
[1680703131266,0.18296,1912.9,1912.8,0.02169423]
[1680703131443,0.18296,1912.9,1912.8,0.32438595]
[1680703132043,0.18296,1912.9,1912.8,0.30269172]
[1680703132243,0.18296,1912.9,1912.7,2.00522293]
[1680703132443,0.18296,1912.9,1912.7,3.00522293]
[1680703132642,0.36592,1913.0,1912.7,2.00522293]
[1680703132847,0.18297,1912.8,1912.7,2.00522293]
[1680703133342,0.36592,1913.0,1912.7,2.00522293]
[1680703133558,0.18297,1912.9,1912.7,2.77710522]
[1680703134984,0.18297,1912.9,1912.7,3.77710522]
[1680703135367,0.18297,1912.9,1912.7,2.77710522]
[1680703135883,0.54888,1913.0,1912.7,3.77710522]
[1680703136181,0.18296,1913.0,1912.7,3.77710522]
[1680703136406,0.18295,1913.1,1912.8,0.37771052]
[1680703136680,0.18295,1913.0,1912.8,0.37771052]
[1680703136884,0.18295,1913.1,1912.9,2.63428255]
[1680703137291,0.73168,1913.4,1912.9,2.63428255]
[1680703137587,0.18294,1913.2,1913.0,1.0]
[1680703137742,0.18293,1913.3,1913.0,3.99771081]
[1680703138132,0.36782,1913.5,1913.0,4.00293374]
[1680703138380,0.18293,1913.3,1913.0,3.99771081]
[1680703138561,0.18292,1913.4,1913.1,0.39977108]
[1680703138738,0.18293,1913.3,1913.1,0.39977108]
[1680703138941,0.36584,1913.4,1913.1,0.39977108]
[1680703138942,0.18293,1913.2,1913.1,0.39977108]
[1680703139780,0.18293,1913.3,1913.1,0.39977108]
[1680703140154,0.18293,1913.2,1913.1,0.39977108]
[1680703141477,0.18294,1913.1,1913.0,2.66119744]
[1680703142877,0.18294,1913.1,1913.0,2.66119744]
[1680703143984,0.36586,1913.3,1913.0,2.66119744]
[1680703143985,0.18294,1913.2,1913.0,2.66119744]
[1680703144187,0.36586,1913.3,1913.0,3.42386718]
[1680703144490,0.18294,1913.2,1913.0,3.42386718]
[1680703144659,0.18294,1913.1,1913.0,3.42386718]
[1680703144869,0.18294,1913.2,1913.0,3.42386718]
[1680703145182,0.18294,1913.1,1913.0,3.42386718]
[1680703146518,0.54883,1913.1,1913.0,0.00522293]
[1680703147091,0.54883,1913.1,1912.9,0.00522293]
[1680703147294,0.18295,1913.0,1912.9,0.00522293]
[1680703147974,0.18296,1912.9,1912.8,0.00522293]
[1680703148789,6.2739,1913.4,1912.8,0.00522293]
[1680703148981,5.1819,1913.4,1912.8,0.00522293]
[1680703149595,5.1819,1913.4,1912.7,3.53147891]
[1680703149812,5.1819,1913.4,1912.8,3.98743044]
[1680703150119,5.1819,1913.4,1912.9,0.0216931]
[1680703150329,5.1819,1913.4,1912.8,0.00522293]
[1680703150628,6.2699,1913.4,1912.7,2.53147891]
[1680703150926,0.51819,1913.3,1912.7,5.16576146]
[1680703151080,6.2699,1913.4,1912.7,5.18945683]
[1680703151286,5.1819,1913.4,1912.7,5.18945683]
[1680703152524,6.2739,1913.4,1912.7,5.18945683]
[1680703152990,5.1819,1913.4,1912.7,5.18945683]
[1680703153193,5.1819,1913.4,1912.8,0.51894568]
[1680703153515,5.1819,1913.4,1912.8,0.52416861]
[1680703156918,5.1819,1913.4,1912.8,0.00522293]
[1680703157127,6.2739,1913.4,1912.8,0.00522293]
[1680703158486,1.322,1913.3,1912.8,0.00522293]
[1680703159003,0.23,1913.3,1912.8,0.00522293]
[1680703159783,0.23,1913.3,1912.7,2.55317428]
[1680703159996,0.87999,1913.3,1912.7,2.0269183]
[1680703161207,1.96299,1913.3,1912.7,2.0269183]
[1680703162539,1.092,1913.2,1912.7,2.0269183]
[1680703163335,0.23,1913.1,1912.7,2.0269183]
[1680703164012,12.7041,1913.2,1912.7,2.28249441]
[1680703165833,11.6121,1913.2,1912.7,2.28249441]
[1680703166809,12.6951,1913.2,1912.7,2.28249441]
[1680703167005,12.6951,1913.2,1912.7,2.0269183]
[1680703169258,1.09,1913.2,1912.7,2.00522293]
[1680703169458,1.088,1913.2,1912.7,2.00522293]
[1680703170335,1.088,1913.2,1912.7,0.00522293]
[1680703170536,2.33466,1913.2,1912.7,0.00522293]
[1680703171038,1.088,1913.2,1912.7,0.00522293]
[1680703171373,12.4706,1913.3,1912.7,0.00522293]
[1680703172366,0.922,1913.2,1912.7,0.00522293]
[1680703176989,11.3786,1913.3,1912.7,0.00522293]
[1680703176990,0.923,1913.0,1912.7,0.00522293]
[1680703178548,12.9936,1913.0,1912.7,0.00522293]
[1680703178847,12.9956,1913.0,1912.7,0.00522293]
[1680703179187,0.54892,1912.8,1912.7,0.00522293]
[1680703180989,1.28083,1912.8,1912.7,0.00522293]
[1680703181175,1.501113,1912.8,1912.7,0.00522293]
[1680703181495,2.655113,1912.8,1912.6,0.00522293]
[1680703181650,0.54895,1912.7,1912.5,0.00522293]
[1680703181851,0.54898,1912.6,1912.5,0.00522293]
[1680703182686,0.54898,1912.6,1912.4,0.00522293]
[1680703183087,0.18299,1912.6,1912.4,0.00522293]
[1680703183588,0.36597,1912.7,1912.4,0.00522293]
[1680703183784,1.65291,1912.8,1912.4,0.00522293]
[1680703183785,1.09786,1912.8,1912.4,0.00522293]
[1680703184392,0.18299,1912.7,1912.4,0.1977668]
[1680703185459,0.36595,1912.8,1912.4,0.1977668]
[1680703185662,0.18299,1912.7,1912.4,0.1977668]
[1680703185846,0.36595,1912.8,1912.4,0.1977668]
[1680703186051,0.36595,1912.8,1912.4,0.00522293]
[1680703186251,0.18299,1912.6,1912.4,2.63950548]
[1680703188253,0.54898,1912.6,1912.4,2.63950548]
[1680703191295,0.924,1912.9,1912.4,2.63950548]
[1680703191458,1.48262,1912.9,1912.4,2.63950548]
[1680703191855,1.29966,1912.9,1912.4,2.63950548]
[1680703192356,1.48262,1912.9,1912.4,2.63950548]
[1680703192913,2.40363,1912.9,1912.4,0.00522293]
[1680703193202,0.240363,1912.8,1912.4,0.00522293]
[1680703193559,0.240363,1912.8,1912.3,0.00522293]
[1680703193760,0.41956428,1912.8,1912.2,1.94713971]
[1680703193966,0.23659428,1912.8,1912.2,4.58142226]
[1680703194199,5.76919428,1912.8,1912.2,6.8123636]
[1680703194390,5.77119428,1912.8,1912.2,6.8143636]
[1680703197008,5.95416428,1912.8,1912.2,6.8143636]
[1680703198262,1.74941643,1912.7,1912.2,0.02892396]
[1680703198459,13.09121643,1912.7,1912.2,0.02692396]
[1680703198700,13.09321643,1912.7,1912.2,0.02692396]
[1680703198901,11.3438,1912.7,1912.2,1.07785705]
[1680703199809,11.3438,1912.7,1912.2,0.00522293]
[1680703200100,1.151,1912.6,1912.2,0.00522293]
[1680703200412,0.818452,1913.8,1912.7,2.63428255]
[1680703200725,6.08642043,1914.3,1912.7,2.63428255]
[1680703200726,5.23354998,1914.4,1913.8,0.27268557]
[1680703201019,0.81574253,1914.9,1913.9,3.144]
[1680703201331,0.65266664,1915.4,1914.3,3.144]
[1680703201463,1.90587646,1915.8,1915.3,3.55028255]
[1680703201665,0.92374254,1915.9,1915.3,3.55028255]
[1680703201666,6.46640917,1915.9,1915.4,2.63428255]
[1680703201900,0.11000001,1915.9,1915.4,2.63428255]
[1680703202109,0.11000001,1915.9,1915.4,2.63950548]
[1680703202408,0.11000001,1915.9,1915.5,3.55828255]
[1680703202705,0.11000001,1915.9,1915.5,0.00522293]
[1680703202894,0.11000001,1915.9,1915.5,0.00322293]
[1680703203075,0.11000001,1915.9,1915.5,0.00522293]
[1680703203276,0.10799738,1915.7,1915.3,0.02166592]
[1680703203665,0.21099712,1915.7,1914.9,0.921]
[1680703204080,1.13099712,1915.7,1914.7,0.93122293]
[1680703204275,0.11309971,1915.6,1914.5,0.00722293]
[1680703204492,0.924,1915.3,1914.4,0.924]
[1680703204676,1.11509971,1915.6,1914.4,0.28442157]
[1680703204876,0.23,1915.5,1914.4,0.924]
[1680703205079,0.23,1915.5,1914.4,1.0]
[1680703205267,0.10799738,1915.7,1914.9,0.924]
[1680703205602,0.78266559,1915.6,1915.0,0.924]
[1680703205811,0.78266559,1915.6,1914.9,0.924]
[1680703205978,0.07826656,1915.5,1914.9,0.924]
[1680703206184,0.10799738,1915.7,1914.9,0.924]
[1680703206390,0.10799738,1915.7,1915.2,0.924]
[1680703206705,0.10799738,1915.7,1915.4,0.924]
[1680703207027,0.10799738,1915.7,1915.2,0.924]
[1680703207232,0.10799738,1915.7,1915.1,0.94266818]
[1680703207398,0.10799738,1915.7,1915.1,1.11066818]
[1680703207601,0.10799738,1915.7,1914.8,0.002]
[1680703207801,0.10799738,1915.7,1914.0,0.8354]
[1680703207802,1.083,1915.5,1914.5,1.089]
[1680703208113,0.10799738,1915.7,1914.0,1.4034]
[1680703208114,1.089,1914.6,1914.0,0.002]
[1680703208316,1.089,1914.6,1913.7,7.96]
[1680703208317,1.089,1914.4,1913.7,7.962]
[1680703208526,1.089,1914.4,1913.7,0.00722293]
[1680703208824,0.00722293,1914.6,1913.8,1.087]
[1680703208994,1.00722293,1914.6,1913.7,0.02168403]
[1680703209194,1.319,1914.5,1913.7,0.02168403]
[1680703209406,0.418182,1914.2,1913.7,0.02168403]
[1680703209585,0.418182,1914.2,1913.9,1.089]
[1680703209784,0.418182,1914.2,1914.0,1.089]
[1680703210086,0.418182,1914.2,1913.9,0.1089]
[1680703210292,0.418182,1914.2,1914.0,1.089]
[1680703210619,0.368182,1914.2,1914.0,1.11068063]
[1680703210949,0.368182,1914.2,1914.1,3.40006806]
[1680703211236,0.368182,1914.2,1914.1,1.20529099]
[1680703211589,0.368182,1914.2,1914.1,1.20006806]
[1680703212693,0.368182,1914.2,1914.1,0.11106806]
[1680703213024,0.368182,1914.2,1914.0,0.02368063]
[1680703213245,0.368182,1914.2,1913.7,1.09222293]
[1680703213534,0.368182,1914.2,1913.5,1.089]
[1680703213829,0.368182,1914.2,1913.7,1.087]
[1680703214013,0.368182,1914.2,1913.6,1.1979]
[1680703214236,0.368182,1914.2,1913.7,1.089]
[1680703214440,0.368182,1914.2,1913.8,1.089]
[1680703214746,0.368182,1914.2,1913.8,0.1089]
[1680703214915,0.368182,1914.2,1913.2,0.00722293]
[1680703215250,0.368182,1914.2,1913.3,1.089]
[1680703215456,0.368182,1914.2,1913.5,1.089]
[1680703215956,0.368182,1914.2,1913.3,1.089]
[1680703216160,0.368182,1914.2,1913.4,1.089]
[1680703216304,0.368182,1914.2,1913.9,1.089]
[1680703216819,0.368182,1914.2,1914.0,2.63428255]
[1680703217642,0.368182,1914.2,1914.1,2.63428255]
[1680703218219,0.368182,1914.2,1914.1,2.65596204]
[1680703218540,0.368182,1914.2,1914.1,7.01075824]
[1680703218742,0.368182,1914.2,1914.1,7.01275824]
[1680703219050,0.368182,1914.2,1914.1,2.92375824]
[1680703219366,0.368182,1914.2,1914.1,7.01075824]
[1680703219660,0.368182,1914.2,1914.1,2.63628255]
[1680703219953,0.368182,1914.2,1914.1,3.72328255]
[1680703220158,0.368182,1914.2,1914.1,6.72328255]
[1680703220309,0.368182,1914.2,1914.1,0.002]
[1680703220511,0.368182,1914.2,1913.8,1.089]
[1680703220714,0.368182,1914.2,1913.9,3.72328255]
[1680703220951,0.368182,1914.2,1914.0,1.089]
[1680703221112,0.368182,1914.2,1914.1,2.63428255]
[1680703221513,0.368182,1914.2,1914.1,3.72328255]
[1680703222050,0.368182,1914.2,1914.1,3.71828255]
[1680703222249,0.368182,1914.2,1914.1,3.00631081]
[1680703222658,0.368182,1914.2,1914.1,6.00631081]
[1680703222818,0.368182,1914.2,1914.1,6.00831081]
[1680703224117,0.368182,1914.2,1914.1,8.20831081]
[1680703224563,0.368182,1914.2,1914.1,13.68731081]
[1680703224765,0.006,1914.9,1914.7,2.2]
[1680703224967,0.006,1915.2,1914.8,2.63428255]
[1680703225259,0.006,1915.3,1914.8,2.63428255]
[1680703225462,0.006,1915.3,1914.9,0.26342826]
[1680703225615,0.006,1915.3,1915.0,2.63428255]
[1680703225810,1.006,1915.5,1915.0,2.63428255]
[1680703226362,2.181,1915.2,1914.9,0.002]
[1680703226663,2.172,1915.2,1914.8,2.8]
[1680703226809,3.159,1915.1,1914.8,2.8]
[1680703227010,0.006,1915.1,1914.8,2.8]
[1680703227248,0.1066,1915.4,1914.8,2.8]
[1680703227445,0.1006,1915.4,1914.9,2.63428255]
[1680703227648,2.2876,1915.4,1914.9,2.63428255]
[1680703227856,0.22876,1915.3,1914.9,2.63428255]
[1680703228034,0.006,1915.3,1914.9,2.63428255]
[1680703228332,0.006,1915.3,1914.8,2.802]
[1680703228529,3.18,1915.5,1914.8,5.43428255]
[1680703228756,2.484,1915.4,1914.8,2.802]
[1680703228938,2.181,1915.3,1914.8,2.8]
[1680703229129,0.006,1915.3,1914.9,2.63428255]
[1680703229547,0.006,1915.3,1914.9,3.18007796]
[1680703229780,2.161,1915.6,1914.9,3.18007796]
[1680703229781,0.006,1915.4,1914.9,3.18007796]
[1680703229983,0.006,1915.4,1914.9,2.63428255]
[1680703230652,2.174,1915.3,1914.8,2.82367156]
[1680703230867,0.2174,1915.2,1914.8,5.45595411]
[1680703231074,0.006,1915.3,1914.8,5.45795411]
[1680703231278,2.181,1915.4,1915.2,2.63428255]
[1680703231279,0.006,1915.4,1915.2,2.63428255]
[1680703231583,0.10799738,1915.7,1915.5,2.2]
[1680703231801,0.10799738,1915.7,1915.6,3.63428255]
[1680703232142,0.05799738,1915.7,1915.6,4.85594506]
[1680703232342,0.05799738,1915.7,1915.6,0.02166251]
[1680703232652,0.05799738,1915.7,1915.6,5.3788336]
[1680703232965,0.05799738,1915.7,1915.6,6.1808336]
[1680703233167,0.05799738,1915.7,1915.6,6.18605653]
[1680703233335,0.05799738,1915.7,1915.6,3.02888544]
[1680703233539,0.05799738,1915.7,1915.6,5.65594506]
[1680703233735,0.05799738,1915.7,1915.6,5.66316799]
[1680703233986,0.01666838,1915.7,1915.6,5.65794506]
[1680703234176,0.01666838,1915.7,1915.6,6.22373957]
[1680703234383,0.01666838,1915.7,1915.6,3.22373957]
[1680703234680,0.01666838,1915.7,1915.6,5.65594506]
[1680703234887,0.01666838,1915.7,1915.6,5.65794506]
[1680703236176,0.11000001,1916.1,1915.8,7.679]
[1680703236177,1e-08,1915.9,1915.8,7.679]
[1680703236350,1e-08,1915.9,1915.8,16.49577571]
[1680703236911,1e-08,1915.9,1915.8,19.63977571]
[1680703237104,1e-08,1915.9,1915.8,19.90008772]
[1680703237320,1e-08,1915.9,1915.8,24.90008772]
[1680703237471,1e-08,1915.9,1915.8,19.90008772]
[1680703237970,1e-08,1915.9,1915.8,0.002]
[1680703238172,1e-08,1915.9,1915.5,0.002]
[1680703238385,1e-08,1915.9,1915.4,2.1]
[1680703238799,2.15900001,1915.9,1915.4,2.1]
[1680703239112,1e-08,1915.9,1915.0,10.381]
[1680703239415,1e-08,1915.9,1915.1,2.178]
[1680703239618,1e-08,1915.9,1915.5,2.161]
[1680703239776,1e-08,1915.9,1915.7,2.2]
[1680703239975,1e-08,1915.9,1915.7,3.0]
[1680703240187,1e-08,1915.9,1915.8,2.2]
[1680703240370,1e-08,1915.9,1915.8,3.52]
[1680703240576,1e-08,1915.9,1915.8,3.54166025]
[1680703241276,1e-08,1915.9,1915.8,3.54688318]
[1680703241476,1e-08,1915.9,1915.8,2.2]
[1680703241714,1e-08,1915.9,1915.8,0.02166025]
[1680703242483,1e-08,1915.9,1915.6,2.3]